fUST/lending_fUST_20250505
["ID","MTS","AMOUNT","RATE_DAILY","PERIOD"]
[359934985,1746432646802,-1011.15,0.00036164,14]
[359934986,1746432646814,-400.0,0.00036164,14]
[359934987,1746432646825,-400.0,0.00036164,14]
[359934988,1746432646836,-400.0,0.00036164,14]
[359934989,1746432646847,-400.0,0.00036164,14]
[359934990,1746432646858,-1281.84,0.00036164,14]
[359934991,1746432646869,-400.0,0.00036164,14]
[359934992,1746432646880,-1335.19,0.00036164,14]
[359934993,1746432646891,-400.0,0.00036164,14]
[359934994,1746432646903,-593.4,0.00036164,14]
[359934995,1746432646915,-2951.14,0.00036164,14]
[359934996,1746432646926,-400.0,0.00036164,14]
[359934997,1746432646938,-400.0,0.00036164,14]
[359934998,1746432646949,-400.0,0.00036164,14]
[359934999,1746432646960,-400.0,0.00036164,14]
[359935000,1746432646971,-400.0,0.00036164,14]
[359935001,1746432646982,-400.0,0.00036164,14]
[359935002,1746432646994,-400.0,0.00036164,14]
[359935003,1746432647009,-562.12,0.00036164,14]
[359935004,1746432647020,-1758.11,0.00036164,14]
[359935005,1746432647031,-1394.95,0.00036164,14]
[359935006,1746432647043,-400.0,0.00036164,14]
[359935007,1746432647054,-307.51587164,0.00036164,14]
[359935008,1746432647065,-400.0,0.00036164,14]
[359935009,1746432647077,-492.47,0.00036164,14]
[359935010,1746432647088,-902.78,0.00036164,14]
[359935011,1746432647099,-785.12,0.00036164,14]
[359935012,1746432647111,-460.9,0.00036164,14]
[359935013,1746432647123,-400.0,0.00036164,14]
[359935014,1746432647136,-433.08,0.00036164,14]
[359935015,1746432647148,-400.0,0.00036164,14]
[359935016,1746432647159,-448.81,0.00036164,14]
[359935017,1746432647170,-400.0,0.00036164,14]
[359935018,1746432647179,-400.0,0.00036164,14]
[359935019,1746432647188,-400.0,0.00036164,14]
[359935020,1746432647198,-400.0,0.00036164,14]
[359935021,1746432647208,-400.0,0.00036164,14]
[359935022,1746432647218,-1058.9,0.00036164,14]
[359935023,1746432647228,-400.0,0.00036164,14]
[359935024,1746432647238,-2659.22,0.00036164,14]
[359935025,1746432647247,-712.06,0.00036164,14]
[359935026,1746432647258,-910.59,0.00036164,14]
[359935027,1746432647268,-400.0,0.00036164,14]
[359935028,1746432647278,-400.0,0.00036164,14]
[359935029,1746432647288,-400.0,0.00036164,14]
[359935030,1746432647299,-400.0,0.00036164,14]
[359935031,1746432647309,-400.0,0.00036164,14]
[359935032,1746432647488,-973.17,0.00036164,14]
[359935033,1746432647504,-1000.0,0.00036164,4]
[359935034,1746432647516,-500.0,0.00036173,5]
[359935035,1746432647526,-457.30942968,0.00036348,34]
[359935036,1746432647536,-400.0,0.00036438,14]
[359935037,1746432647545,-400.0,0.00036438,14]
[359935038,1746432647554,-400.0,0.00036438,14]
[359935039,1746432647564,-231.99827921,0.00036438,14]
[359935040,1746432647574,-400.0,0.00036438,14]
[359935041,1746432647584,-400.0,0.00036438,14]
[359935042,1746432647593,-222.14260095,0.00036438,14]
[359935043,1746432647603,-683.03,0.00036438,14]
[359935044,1746432647612,-400.0,0.00036438,14]
[359935045,1746432647622,-400.0,0.00036438,14]
[359935046,1746432647632,-400.0,0.00036438,14]
[359935047,1746432647642,-855.06,0.00036438,2]
[359935048,1746432647651,-400.0,0.00036438,14]
[359935049,1746432647661,-1075.05,0.00036438,14]
[359935050,1746432647670,-400.0,0.00036438,14]
[359935051,1746432647680,-628.89,0.00036438,14]
[359935052,1746432647690,-400.0,0.00036438,14]
[359935053,1746432647700,-400.0,0.00036438,14]
[359935054,1746432647710,-400.0,0.00036438,14]
[359935055,1746432647720,-400.0,0.00036438,14]
[359935056,1746432647729,-400.0,0.00036438,14]
[359935057,1746432647739,-428.84,0.00036438,14]
[359935058,1746432647749,-400.0,0.00036438,14]
[359935059,1746432647758,-400.0,0.00036438,14]
[359935060,1746432647768,-1008.57,0.00036438,14]
[359935061,1746432647777,-400.0,0.00036438,14]
[359935062,1746432647787,-400.0,0.00036438,14]
[359935063,1746432647797,-400.0,0.00036438,14]
[359935064,1746432647807,-400.0,0.00036438,14]
[359935065,1746432647818,-400.0,0.00036438,14]
[359935066,1746432647827,-243.01314045,0.00036438,14]
[359935067,1746432647837,-400.0,0.00036438,14]
[359935068,1746432647846,-517.83,0.00036438,14]
[359935069,1746432647856,-452.9,0.00036438,14]
[359935070,1746432647872,-400.0,0.00036438,14]
[359935071,1746432647881,-417.96,0.00036438,14]
[359935072,1746432647891,-250.36,0.00036438,14]
[359935073,1746432647900,-434.68,0.00036438,14]
[359935074,1746432647910,-400.0,0.00036438,14]
[359935075,1746432647919,-409.45,0.00036438,14]
[359935076,1746432647929,-400.0,0.00036438,14]
[359935077,1746432647939,-400.0,0.00036438,14]
[359935078,1746432647948,-400.0,0.00036438,14]
[359935079,1746432647958,-400.0,0.00036438,14]
[359935080,1746432647968,-400.0,0.00036438,14]
[359935081,1746432647978,-400.0,0.00036438,14]
[359935082,1746432647988,-155.63585643,0.00036438,14]
[359935083,1746432648001,-400.0,0.00036438,14]
[359935084,1746432648011,-400.0,0.00036438,14]
[359935085,1746432648021,-400.0,0.00036438,14]
[359935086,1746432648030,-400.0,0.00036438,14]
[359935087,1746432648039,-400.0,0.00036438,14]
[359935088,1746432648050,-400.0,0.00036438,14]
[359935089,1746432648059,-226.24039619,0.00036438,14]
[359935090,1746432648069,-1471.68,0.00036438,14]
[359935091,1746432648080,-400.0,0.00036438,14]
[359935092,1746432648089,-400.0,0.00036438,14]
[359935093,1746432648099,-400.0,0.00036438,14]
[359935094,1746432648108,-400.0,0.00036438,14]
[359935095,1746432648118,-400.0,0.00036438,14]
[359935096,1746432648128,-400.0,0.00036438,14]
[359935097,1746432648137,-400.0,0.00036438,14]
[359935098,1746432648146,-410.44302355,0.00036438,14]
[359935099,1746432648156,-400.0,0.00036438,14]
[359935100,1746432648165,-400.0,0.00036438,14]
[359935101,1746432648175,-400.0,0.00036438,14]
[359935102,1746432648184,-400.0,0.00036438,14]
[359935103,1746432648194,-400.0,0.00036438,14]
[359935104,1746432648204,-1359.03,0.00036438,14]
[359935105,1746432648214,-407.84,0.00036438,14]
[359935106,1746432648223,-400.0,0.00036438,14]
[359935107,1746432648233,-400.0,0.00036438,14]
[359935108,1746432648243,-400.0,0.00036438,14]
[359935109,1746432648253,-400.0,0.00036438,14]
[359935110,1746432648262,-400.0,0.00036438,14]
[359935111,1746432648272,-478.13,0.00036438,14]
[359935112,1746432648281,-400.0,0.00036438,14]
[359935113,1746432648291,-400.0,0.00036438,14]
[359935114,1746432648301,-400.0,0.00036438,14]
[359935115,1746432648311,-400.0,0.00036438,14]
[359935116,1746432648321,-991.79,0.00036438,14]
[359935117,1746432648331,-20929.32,0.00036438,14]
[359935118,1746432648342,-473.96,0.00036438,14]
[359935119,1746432648353,-710.15,0.00036438,14]
[359935120,1746432648362,-1011.15,0.00036438,14]
[359935121,1746432648372,-400.0,0.00036438,14]
[359935122,1746432648382,-400.0,0.00036438,14]
[359935123,1746432648393,-400.0,0.00036438,14]
[359935124,1746432648403,-400.0,0.00036438,14]
[359935125,1746432648414,-1281.84,0.00036438,14]
[359935126,1746432648424,-400.0,0.00036438,14]
[359935127,1746432648434,-1335.19,0.00036438,14]
[359935128,1746432648443,-400.0,0.00036438,14]
[359935129,1746432648453,-593.4,0.00036438,14]
[359935130,1746432648463,-2951.14,0.00036438,14]
[359935131,1746432648473,-258.09,0.00036438,14]
[359935132,1746432648482,-400.0,0.00036438,14]
[359935133,1746432648492,-400.0,0.00036438,14]
[359935134,1746432648501,-400.0,0.00036438,14]
[359935135,1746432648511,-400.0,0.00036438,14]
[359935136,1746432648520,-400.0,0.00036438,14]
[359935137,1746432648530,-400.0,0.00036438,14]
[359935138,1746432648540,-562.12,0.00036438,14]
[359935139,1746432648550,-1758.11,0.00036438,14]
[359935140,1746432648559,-1394.95,0.00036438,14]
[359935141,1746432648569,-400.0,0.00036438,14]
[359935142,1746432648578,-400.0,0.00036438,14]
[359935143,1746432648588,-492.47,0.00036438,14]
[359935144,1746432648597,-902.78,0.00036438,14]
[359935145,1746432648607,-785.12,0.00036438,14]
[359935146,1746432648617,-460.9,0.00036438,14]
[359935147,1746432648627,-400.0,0.00036438,14]
[359935148,1746432648637,-433.08,0.00036438,14]
[359935149,1746432648646,-448.81,0.00036438,14]
[359935150,1746432648656,-400.0,0.00036438,14]
[359935151,1746432648666,-400.0,0.00036438,14]
[359935152,1746432648676,-400.0,0.00036438,14]
[359935153,1746432648686,-400.0,0.00036438,14]
[359935154,1746432648696,-400.0,0.00036438,14]
[359935155,1746432648705,-1058.9,0.00036438,14]
[359935156,1746432648715,-400.0,0.00036438,14]
[359935157,1746432648724,-2659.22,0.00036438,14]
[359935158,1746432648734,-712.06,0.00036438,14]
[359935159,1746432648743,-910.59,0.00036438,14]
[359935160,1746432648752,-400.0,0.00036438,14]
[359935161,1746432648762,-400.0,0.00036438,14]
[359935162,1746432648772,-400.0,0.00036438,14]
[359935163,1746432648782,-400.0,0.00036438,14]
[359935164,1746432648792,-400.0,0.00036438,14]
[359935165,1746432648801,-973.17,0.00036438,14]
[359935166,1746432648811,-477.04403513,0.00036568,5]
[359935167,1746432648820,-500.0,0.0003663,60]
[359935168,1746432648830,-400.0,0.00036712,14]
[359935169,1746432648840,-400.0,0.00036712,14]
[359935170,1746432648850,-400.0,0.00036712,14]
[359935171,1746432648859,-400.0,0.00036712,14]
[359935172,1746432648868,-400.0,0.00036712,14]
[359935173,1746432648878,-683.03,0.00036712,14]
[359935174,1746432648887,-400.0,0.00036712,14]
[359935175,1746432648897,-400.0,0.00036712,14]
[359935176,1746432648907,-400.0,0.00036712,14]
[359935177,1746432648916,-855.06,0.00036712,2]
[359935178,1746432648925,-400.0,0.00036712,14]
[359935179,1746432648935,-1075.05,0.00036712,14]
[359935180,1746432648944,-270.77,0.00036712,14]
[359935181,1746432648953,-628.89,0.00036712,14]
[359935182,1746432648963,-400.0,0.00036712,14]
[359935183,1746432648973,-275.51,0.00036712,14]
[359935184,1746432648982,-400.0,0.00036712,14]
[359935185,1746432648992,-400.0,0.00036712,14]
[359935186,1746432649007,-428.84,0.00036712,14]
[359935187,1746432649017,-200.0,0.00036712,14]
[359935188,1746432649027,-295.19,0.00036712,14]
[359935189,1746432649037,-1008.57,0.00036712,14]
[359935190,1746432649047,-400.0,0.00036712,14]
[359935191,1746432649056,-400.0,0.00036712,14]
[359935192,1746432649065,-400.0,0.00036712,14]
[359935193,1746432649077,-400.0,0.00036712,14]
[359935194,1746432649088,-356.66,0.00036712,14]
[359935195,1746432649098,-452.9,0.00036712,14]
[359935196,1746432649108,-400.0,0.00036712,14]
[359935197,1746432649118,-400.0,0.00036712,14]
[359935198,1746432649128,-400.0,0.00036712,14]
[359935199,1746432649137,-400.0,0.00036712,14]
[359935200,1746432649147,-400.0,0.00036712,14]
[359935201,1746432649158,-400.0,0.00036712,14]
[359935202,1746432649168,-400.0,0.00036712,14]
[359935203,1746432649178,-400.0,0.00036712,14]
[359935204,1746432649188,-400.0,0.00036712,14]
[359935205,1746432649198,-400.0,0.00036712,14]
[359935206,1746432649208,-400.0,0.00036712,14]
[359935207,1746432649218,-400.0,0.00036712,14]
[359935208,1746432649228,-1471.68,0.00036712,14]
[359935209,1746432649238,-400.0,0.00036712,14]
[359935210,1746432649248,-400.0,0.00036712,14]
[359935211,1746432649258,-400.0,0.00036712,14]
[359935212,1746432649267,-400.0,0.00036712,14]
[359935213,1746432649277,-400.0,0.00036712,14]
[359935214,1746432649287,-400.0,0.00036712,14]
[359935215,1746432649298,-400.0,0.00036712,14]
[359935216,1746432649307,-400.0,0.00036712,14]
[359935217,1746432649317,-1359.03,0.00036712,14]
[359935218,1746432649327,-407.84,0.00036712,14]
[359935219,1746432649338,-400.0,0.00036712,14]
[359935220,1746432649348,-400.0,0.00036712,14]
[359935221,1746432649358,-400.0,0.00036712,14]
[359935222,1746432649368,-416.0219928,0.00036712,14]
[359935223,1746432649379,-400.0,0.00036712,14]
[359935224,1746432649389,-151.0,0.00036712,14]
[359935225,1746432649398,-478.13,0.00036712,14]
[359935226,1746432649408,-400.0,0.00036712,14]
[359935227,1746432649418,-400.0,0.00036712,14]
[359935228,1746432649428,-400.0,0.00036712,14]
[359935229,1746432649438,-400.0,0.00036712,14]
[359935230,1746432649447,-991.79,0.00036712,14]
[359935231,1746432649457,-20929.32,0.00036712,14]
[359935232,1746432649467,-473.96,0.00036712,14]
[359935233,1746432649477,-710.15,0.00036712,14]
[359935234,1746432649487,-1011.15,0.00036712,14]
[359935235,1746432649496,-262.25604194,0.00036712,14]
[359935236,1746432649506,-400.0,0.00036712,14]
[359935237,1746432649516,-400.0,0.00036712,14]
[359935238,1746432649526,-400.0,0.00036712,14]
[359935239,1746432649536,-1281.84,0.00036712,14]
[359935240,1746432649546,-400.0,0.00036712,14]
[359935241,1746432649555,-1335.19,0.00036712,14]
[359935242,1746432649565,-593.4,0.00036712,14]
[359935243,1746432649575,-2951.14,0.00036712,14]
[359935244,1746432649585,-400.0,0.00036712,14]
[359935245,1746432649595,-400.0,0.00036712,14]
[359935246,1746432649605,-400.0,0.00036712,14]
[359935247,1746432649615,-400.0,0.00036712,14]
[359935248,1746432649625,-400.0,0.00036712,14]
[359935249,1746432649635,-400.0,0.00036712,14]
[359935250,1746432649644,-562.12,0.00036712,14]
[359935251,1746432649654,-1758.11,0.00036712,14]
[359935252,1746432649663,-1394.95,0.00036712,14]
[359935253,1746432649673,-400.0,0.00036712,14]
[359935254,1746432649682,-400.0,0.00036712,14]
[359935255,1746432649692,-492.47,0.00036712,14]
[359935256,1746432649701,-902.78,0.00036712,14]
[359935257,1746432649713,-785.12,0.00036712,14]
[359935258,1746432649723,-460.9,0.00036712,14]
[359935259,1746432649732,-360.51162163,0.00036712,14]
[359935260,1746432649742,-433.08,0.00036712,14]
[359935261,1746432649752,-448.81,0.00036712,14]
[359935262,1746432649762,-400.0,0.00036712,14]
[359935263,1746432649772,-400.0,0.00036712,14]
[359935264,1746432649782,-400.0,0.00036712,14]
[359935265,1746432649794,-400.0,0.00036712,14]
[359935266,1746432649804,-400.0,0.00036712,14]
[359935267,1746432649815,-1058.9,0.00036712,14]
[359935268,1746432649825,-400.0,0.00036712,14]
[359935269,1746432649834,-2659.22,0.00036712,14]
[359935270,1746432649844,-712.06,0.00036712,14]
[359935271,1746432649853,-910.59,0.00036712,14]
[359935272,1746432649863,-400.0,0.00036712,14]
[359935273,1746432649872,-310.80507695,0.00036712,14]
[359935274,1746432649882,-400.0,0.00036712,14]
[359935275,1746432649891,-400.0,0.00036712,14]
[359935276,1746432649902,-400.0,0.00036712,14]
[359935277,1746432649913,-973.17,0.00036712,14]
[359935278,1746432649923,-457.30942968,0.00036762,35]
[359935279,1746432649933,-745.57,0.000368,7]
[359935280,1746432649943,-151.0,0.000368,14]
[359935281,1746432649953,-151.0,0.000368,14]
[359935282,1746432649962,-179.138467,0.00036985,2]
[359935283,1746432649972,-400.0,0.00036986,14]
[359935284,1746432649982,-400.0,0.00036986,14]
[359935285,1746432649991,-163.42584721,0.00036986,14]
[359935286,1746432650003,-400.0,0.00036986,14]
[359935287,1746432650013,-400.0,0.00036986,14]
[359935288,1746432650022,-683.03,0.00036986,14]
[359935289,1746432650032,-400.0,0.00036986,14]
[359935290,1746432650043,-385.4,0.00036986,14]
[359935291,1746432650053,-400.0,0.00036986,14]
[359935292,1746432650062,-855.06,0.00036986,2]
[359935293,1746432650073,-400.0,0.00036986,14]
[359935294,1746432650084,-1075.05,0.00036986,14]
[359935295,1746432650095,-628.89,0.00036986,14]
[359935296,1746432650105,-400.0,0.00036986,14]
[359935297,1746432650115,-400.0,0.00036986,14]
[359935298,1746432650125,-400.0,0.00036986,14]
[359935299,1746432650135,-428.84,0.00036986,14]
[359935300,1746432650145,-1008.57,0.00036986,14]
[359935301,1746432650155,-400.0,0.00036986,14]
[359935302,1746432650165,-400.0,0.00036986,14]
[359935303,1746432650176,-548.1,0.00036986,14]
[359935304,1746432650187,-452.9,0.00036986,14]
[359935305,1746432650197,-400.0,0.00036986,14]
[359935306,1746432650207,-400.0,0.00036986,14]
[359935307,1746432650217,-400.0,0.00036986,14]
[359935308,1746432650227,-400.0,0.00036986,14]
[359935309,1746432650238,-400.0,0.00036986,14]
[359935310,1746432650248,-400.0,0.00036986,14]
[359935311,1746432650258,-400.0,0.00036986,14]
[359935312,1746432650267,-400.0,0.00036986,14]
[359935313,1746432650277,-400.0,0.00036986,14]
[359935314,1746432650287,-400.0,0.00036986,14]
[359935315,1746432650297,-1471.68,0.00036986,14]
[359935316,1746432650306,-400.0,0.00036986,14]
[359935317,1746432650316,-400.0,0.00036986,14]
[359935318,1746432650326,-400.0,0.00036986,14]
[359935319,1746432650336,-400.0,0.00036986,14]
[359935320,1746432650346,-400.0,0.00036986,14]
[359935321,1746432650356,-400.0,0.00036986,14]
[359935322,1746432650366,-1359.03,0.00036986,14]
[359935323,1746432650377,-407.84,0.00036986,14]
[359935324,1746432650386,-400.0,0.00036986,14]
[359935325,1746432650396,-400.0,0.00036986,14]
[359935326,1746432650406,-400.0,0.00036986,14]
[359935327,1746432650415,-478.13,0.00036986,14]
[359935328,1746432650425,-400.0,0.00036986,14]
[359935329,1746432650435,-400.0,0.00036986,14]
[359935330,1746432650444,-400.0,0.00036986,14]
[359935331,1746432650454,-400.0,0.00036986,14]
[359935332,1746432650464,-991.79,0.00036986,14]
[359935333,1746432650474,-20929.32,0.00036986,14]
[359935334,1746432650483,-473.96,0.00036986,14]
[359935335,1746432650492,-710.15,0.00036986,14]
[359935336,1746432650501,-1011.15,0.00036986,14]
[359935337,1746432650511,-400.0,0.00036986,14]
[359935338,1746432650521,-400.0,0.00036986,14]
[359935339,1746432650531,-400.0,0.00036986,14]
[359935340,1746432650542,-1281.84,0.00036986,14]
[359935341,1746432650552,-400.0,0.00036986,14]
[359935342,1746432650562,-151.0,0.00036986,14]
[359935343,1746432650571,-1335.19,0.00036986,14]
[359935344,1746432650581,-593.4,0.00036986,14]
[359935345,1746432650591,-2951.14,0.00036986,14]
[359935346,1746432650601,-400.0,0.00036986,14]
[359935347,1746432650611,-400.0,0.00036986,14]
[359935348,1746432650621,-400.0,0.00036986,14]
[359935349,1746432650633,-400.0,0.00036986,14]
[359935350,1746432650642,-400.0,0.00036986,14]
[359935351,1746432650652,-400.0,0.00036986,14]
[359935352,1746432650662,-562.12,0.00036986,14]
[359935353,1746432650672,-1758.11,0.00036986,14]
[359935354,1746432650681,-1394.95,0.00036986,14]
[359935355,1746432650691,-400.0,0.00036986,14]
[359935356,1746432650700,-400.0,0.00036986,14]
[359935357,1746432650710,-492.47,0.00036986,14]
[359935358,1746432650720,-902.78,0.00036986,14]
[359935359,1746432650730,-785.12,0.00036986,14]
[359935360,1746432650739,-460.9,0.00036986,14]
[359935361,1746432650749,-433.08,0.00036986,14]
[359935362,1746432650881,-448.81,0.00036986,14]
[359935363,1746432650893,-400.0,0.00036986,14]
[359935364,1746432650903,-400.0,0.00036986,14]
[359935365,1746432650914,-400.0,0.00036986,14]
[359935366,1746432650924,-400.0,0.00036986,14]
[359935367,1746432650934,-400.0,0.00036986,14]
[359935368,1746432650943,-1058.9,0.00036986,14]
[359935369,1746432650953,-400.0,0.00036986,14]
[359935370,1746432650962,-2659.22,0.00036986,14]
[359935371,1746432650972,-712.06,0.00036986,14]
[359935372,1746432650981,-910.59,0.00036986,14]
[359935373,1746432650991,-549.79,0.00036986,14]
[359935374,1746432651007,-400.0,0.00036986,14]
[359935375,1746432651017,-243.72300967,0.00036986,14]
[359935376,1746432651027,-400.0,0.00036986,14]
[359935377,1746432651037,-973.17,0.00036986,14]
[359935378,1746432651049,-2024.6,0.00037,30]
[359935379,1746432651058,-152.31710252,0.00037088,2]
[359935380,1746432651069,-223.0315306,0.00037088,2]
[359935381,1746432651079,-906.74,0.000371,30]
[359935382,1746432651089,-457.30942968,0.00037176,36]
[359935383,1746432651099,-500.0,0.00037178,60]
[359935384,1746432651109,-400.0,0.0003726,14]
[359935385,1746432651119,-400.0,0.0003726,14]
[359935386,1746432651129,-495.45355086,0.0003726,14]
[359935387,1746432651138,-400.0,0.0003726,14]
[359935388,1746432651148,-683.03,0.0003726,14]
[359935389,1746432651158,-400.0,0.0003726,14]
[359935390,1746432651168,-505.88,0.0003726,14]
[359935391,1746432651178,-855.06,0.0003726,2]
[359935392,1746432651188,-400.0,0.0003726,14]
[359935393,1746432651197,-1075.05,0.0003726,14]
[359935394,1746432651208,-628.89,0.0003726,14]
[359935395,1746432651218,-400.0,0.0003726,14]
[359935396,1746432651228,-400.0,0.0003726,14]
[359935397,1746432651237,-400.0,0.0003726,14]
[359935398,1746432651247,-428.84,0.0003726,14]
[359935399,1746432651257,-1008.57,0.0003726,14]
[359935400,1746432651267,-400.0,0.0003726,14]
[359935401,1746432651276,-400.0,0.0003726,14]
[359935402,1746432651287,-452.9,0.0003726,14]
[359935403,1746432651296,-151.0,0.0003726,14]
[359935404,1746432651307,-151.0,0.0003726,14]
[359935405,1746432651317,-82.97733256,0.0003726,14]
[359935406,1746432651539,-400.0,0.00035616,14]
[359935407,1746432651548,-400.0,0.0003589,14]
[359935408,1746432651558,-400.0,0.0003589,14]
[359935409,1746432651568,-400.0,0.00036164,14]
[359935410,1746432651579,-400.0,0.00036164,14]
[359935411,1746432651588,-400.0,0.00036438,14]
[359935412,1746432651598,-400.0,0.00036712,14]
[359935413,1746432651608,-400.0,0.00036986,14]
[359935414,1746432651618,-317.02266744,0.0003726,14]
[359935415,1746432651628,-400.0,0.0003726,14]
[359935416,1746432651638,-229.18838986,0.0003726,14]
[359935417,1746432651647,-400.0,0.0003726,14]
[359935418,1746432651657,-400.0,0.0003726,14]
[359935419,1746432651667,-400.0,0.0003726,14]
[359935420,1746432651677,-400.0,0.0003726,14]
[359935421,1746432651686,-400.0,0.0003726,14]
[359935422,1746432651695,-500.42197478,0.0003726,14]
[359935423,1746432651707,-684.48492881,0.0003726,14]
[359935424,1746432651919,-400.0,0.00035616,2]
[359935425,1746432651929,-400.0,0.0003589,2]
[359935426,1746432651939,-265.94,0.00036164,2]
[359935427,1746432651950,-286.77309641,0.0003726,14]
[359935428,1746432651960,-400.0,0.0003726,14]
[359935429,1746432651970,-400.0,0.0003726,14]
[359935430,1746432651980,-400.0,0.0003726,14]
[359935431,1746432651990,-395.89312018,0.0003726,14]
[359935432,1746432652003,-400.0,0.0003726,14]
[359935433,1746432652013,-400.0,0.0003726,14]
[359935434,1746432652023,-1359.03,0.0003726,14]
[359935435,1746432652033,-407.84,0.0003726,14]
[359935436,1746432652044,-400.0,0.0003726,14]
[359935437,1746432652053,-400.0,0.0003726,14]
[359935438,1746432652063,-400.0,0.0003726,14]
[359935439,1746432652075,-478.13,0.0003726,14]
[359935440,1746432652085,-400.0,0.0003726,14]
[359935441,1746432652095,-213.62,0.0003726,14]
[359935442,1746432652106,-400.0,0.0003726,14]
[359935443,1746432652116,-400.0,0.0003726,14]
[359935444,1746432652126,-991.79,0.0003726,14]
[359935445,1746432652136,-20929.32,0.0003726,14]
[359935446,1746432652146,-473.96,0.0003726,14]
[359935447,1746432652156,-710.15,0.0003726,14]
[359935448,1746432652166,-1011.15,0.0003726,14]
[359935449,1746432652175,-400.0,0.0003726,14]
[359935450,1746432652185,-400.0,0.0003726,14]
[359935451,1746432652195,-400.0,0.0003726,14]
[359935452,1746432652205,-1281.84,0.0003726,14]
[359935453,1746432652215,-400.0,0.0003726,14]
[359935454,1746432652225,-1335.19,0.0003726,14]
[359935455,1746432652235,-593.4,0.0003726,14]
[359935456,1746432652245,-2951.14,0.0003726,14]
[359935457,1746432652255,-400.0,0.0003726,14]
[359935458,1746432652265,-400.0,0.0003726,14]
[359935459,1746432652275,-400.0,0.0003726,14]
[359935460,1746432652284,-400.0,0.0003726,14]
[359935461,1746432652294,-400.0,0.0003726,14]
[359935462,1746432652303,-400.0,0.0003726,14]
[359935463,1746432652313,-562.12,0.0003726,14]
[359935464,1746432652324,-1758.11,0.0003726,14]
[359935465,1746432652334,-1394.95,0.0003726,14]
[359935466,1746432652344,-400.0,0.0003726,14]
[359935467,1746432652354,-400.0,0.0003726,14]
[359935468,1746432652363,-492.47,0.0003726,14]
[359935469,1746432652374,-902.78,0.0003726,14]
[359935470,1746432652383,-785.12,0.0003726,14]
[359935471,1746432652393,-460.9,0.0003726,14]
[359935472,1746432652402,-433.08,0.0003726,14]
[359935473,1746432652412,-448.81,0.0003726,14]
[359935474,1746432652422,-400.0,0.0003726,14]
[359935475,1746432652432,-400.0,0.0003726,14]
[359935476,1746432652442,-400.0,0.0003726,14]
[359935477,1746432652451,-400.0,0.0003726,14]
[359935478,1746432652461,-1058.9,0.0003726,14]
[359935479,1746432652471,-400.0,0.0003726,14]
[359935480,1746432652481,-2659.22,0.0003726,14]
[359935481,1746432652490,-712.06,0.0003726,14]
[359935482,1746432652499,-910.59,0.0003726,14]
[359935483,1746432652509,-359.86,0.0003726,14]
[359935484,1746432652518,-400.0,0.0003726,14]